bitfinex/quotes_SOLUSD_20220104
["timestamp","ask_amount","ask_price","bid_price","bid_amount"]
[1641264182102,2.28417008,167.95,167.84,1.0319994]
[1641264182301,8.56,167.94,167.84,1.0319994]
[1641264182501,2.41636317,167.92,167.84,1.0319994]
[1641264182801,3.71206317,167.92,167.84,1.0319994]
[1641264183000,4.21206317,167.92,167.84,1.0319994]
[1641264183804,4.21206317,167.92,167.84,1.2919994]
[1641264185004,4.21206317,167.92,167.84,1.7919994]
[1641264186807,1.2957,167.92,167.84,1.7919994]
[1641264188410,23.3214,167.93,167.84,1.7919994]
[1641264194512,25.1322,167.93,167.84,1.7919994]
[1641264197421,24.6322,167.93,167.84,1.7919994]
[1641264198424,25.1322,167.93,167.84,1.7919994]
[1641264199024,24.6322,167.93,167.84,1.7919994]
[1641264199226,25.1322,167.93,167.84,1.7919994]
[1641264199427,24.6322,167.93,167.84,1.7919994]
[1641264201848,24.6322,167.93,167.84,0.76]
[1641264202047,24.6322,167.93,167.84,0.5]
[1641264202247,24.6322,167.93,167.81,53.79802807]
[1641264202450,24.6322,167.93,167.81,62.35802807]
[1641264203250,76.1651,167.96,167.81,63.78472175]
[1641264203449,76.1651,167.96,167.81,70.20072175]
[1641264203949,78.67093783,167.96,167.81,86.25148232]
[1641264206356,23.9976,167.95,167.81,86.25148232]
[1641264206552,23.9976,167.95,167.81,79.83548232]
[1641264206954,25.3648,167.95,167.81,79.83548232]
[1641264215963,25.3648,167.95,167.81,79.57548232]
[1641264217363,25.3648,167.95,167.81,79.83548232]
[1641264223677,25.3648,167.95,167.81,88.76838232]
[1641264224080,1.2544,168.02,167.82,82.0]
[1641264224285,23.6204,168.02,168.01,3.32008601]
[1641264224479,23.6204,168.02,168.01,10.88408601]
[1641264224480,6.06434828,168.02,168.01,10.88408601]
[1641264224679,5.33215791,168.06,168.01,11.14408601]
[1641264225279,5.33215791,168.06,168.02,28.76813059]
[1641264225680,5.33215791,168.06,168.02,29.02813059]
[1641264226381,5.33215791,168.06,168.02,29.52813059]
[1641264227784,174.2874,168.17,168.06,5.33215791]
[1641264228003,1.277,168.16,168.06,11.39615791]
[1641264228203,1.277,168.16,168.06,11.89615791]
[1641264228404,3.55185204,168.16,168.07,26.78323946]
[1641264228602,3.55185204,168.16,168.07,27.04323946]
[1641264228803,3.55185204,168.16,168.07,27.54323946]
[1641264229203,24.2513,168.17,168.07,27.54323946]
[1641264229405,1.2492,168.19,168.07,37.52993314]
[1641264230202,2.72045178,168.18,168.07,36.10323946]
[1641264230404,2.72045178,168.18,168.07,35.84323946]
[1641264231905,29.14740382,168.17,168.07,36.10323946]
[1641264233006,2.72045178,168.18,168.07,36.10323946]
[1641264233803,3.22045178,168.18,168.07,36.10323946]
[1641264234003,27.42041475,168.18,168.07,36.10323946]
[1641264234406,27.42041475,168.18,168.07,35.84323946]
[1641264235105,2.72045178,168.18,168.07,35.84323946]
[1641264235909,2.72045178,168.18,168.07,36.10323946]
[1641264241115,2.72045178,168.18,168.07,35.84323946]
[1641264241316,3.48045178,168.18,168.07,35.84323946]
[1641264241615,3.48045178,168.18,168.07,27.28323946]
[1641264242016,12.04045178,168.18,168.07,27.28323946]
[1641264242414,12.04045178,168.18,168.07,26.78323946]
[1641264243018,13.46714546,168.18,168.07,26.78323946]
[1641264243618,9.32,168.18,168.07,26.78323946]
[1641264243818,9.32,168.18,168.07,27.28323946]
[1641264243819,8.82,168.18,168.07,27.28323946]
[1641264244018,8.56,168.18,168.07,26.78323946]
[1641264244418,9.06,168.18,168.07,27.04323946]
[1641264244619,2.27846167,168.17,168.07,0.26]
[1641264244821,26.53806167,168.17,168.06,5.33215791]
[1641264245019,8.56,168.16,168.06,5.33215791]
[1641264245420,9.32,168.16,168.06,5.33215791]
[1641264245622,25.30981987,168.15,168.06,5.33215791]
[1641264245820,2.2709558,168.14,168.06,5.33215791]
[1641264246019,2.5309558,168.14,168.06,5.59215791]
[1641264246522,3.0309558,168.14,168.06,5.59215791]
[1641264247425,2.2709558,168.14,168.06,5.59215791]
[1641264247620,2.7709558,168.14,168.06,5.59215791]
[1641264248223,2.2709558,168.14,168.06,5.59215791]
[1641264248426,8.56,168.15,168.06,5.59215791]
[1641264248625,2.88830533,168.14,168.06,5.59215791]
[1641264248827,3.38830533,168.14,168.06,5.59215791]
[1641264249026,3.64830533,168.14,168.06,5.59215791]
[1641264249229,8.56,168.13,168.06,5.33215791]
[1641264249526,34.37851658,168.13,168.06,5.33215791]
[1641264249727,35.80521026,168.13,168.06,5.33215791]
[1641264250331,9.32,168.13,168.06,5.33215791]
[1641264250829,10.74669368,168.13,168.06,5.33215791]
[1641264252831,8.9314,168.12,168.06,5.33215791]
[1641264253032,29.7273259,168.1,168.06,5.33215791]
[1641264253231,8.56,168.09,168.06,5.33215791]
[1641264253431,56.42779034,168.07,168.06,5.33215791]
[1641264253835,72.91379034,168.07,168.06,5.33215791]
[1641264254035,15.99431582,168.06,168.01,3.32008601]
[1641264254257,2.81394598,168.04,168.01,3.32008601]
[1641264254455,12.13394598,168.04,168.01,3.32008601]
[1641264254756,3.03219997,168.03,168.01,3.32008601]
[1641264255956,3.53219997,168.03,168.01,3.32008601]
[1641264256357,29.3443781,168.02,168.01,3.32008601]
[1641264256556,29.6043781,168.02,168.01,3.32008601]
[1641264256756,30.1043781,168.02,168.01,3.32008601]
[1641264257156,57.1043781,168.02,168.01,3.32008601]
[1641264257359,60.13652641,168.02,168.01,3.32008601]
[1641264257559,60.13652641,168.02,167.86,25.0644]
[1641264257560,3.32,168.01,167.86,25.0644]
[1641264257761,38.86304261,168.01,167.86,25.0644]
[1641264257959,38.86304261,168.01,167.86,25.5644]
[1641264257960,39.62304261,168.01,167.86,25.5644]
[1641264258261,45.41404261,168.01,167.84,33.68675357]
[1641264258459,1.42669368,168.0,167.84,64.15470475]
[1641264258659,8.56,167.99,167.84,64.15470475]
[1641264258861,53.07915471,167.98,167.84,64.15470475]
[1641264259061,8.56,167.97,167.84,64.15470475]
[1641264259262,8.56,167.97,167.84,30.46795118]
[1641264259461,9.32,167.97,167.84,30.46795118]
[1641264259661,8.82,167.97,167.84,30.46795118]
[1641264259862,24.5227,167.96,167.84,30.46795118]
[1641264260064,2.45768506,167.95,167.84,41.32383187]
[1641264260461,24.5227,167.96,167.84,41.32383187]
[1641264261462,24.5227,167.96,167.84,30.72795118]
[1641264261663,2.80632498,167.95,167.84,30.72795118]
[1641264262064,1.77432558,167.95,167.84,30.72795118]
[1641264262865,25.8795,167.96,167.84,30.72795118]
[1641264263966,24.5227,167.96,167.84,30.72795118]
[1641264264669,1.3636,168.0,167.85,8.56]
[1641264264870,1.3636,168.0,167.86,23.4869]
[1641264265069,1.3636,168.0,167.85,0.76]
[1641264265272,10.95035429,167.99,167.88,25.14352833]
[1641264265469,11.71035429,167.99,167.88,25.14352833]
[1641264266372,11.71035429,167.99,167.88,25.40352833]
[1641264266572,11.45035429,167.99,167.88,25.90352833]
[1641264266772,10.95035429,167.99,167.88,25.90352833]
[1641264266973,23.1357,167.98,167.88,25.40352833]
[1641264267172,23.1357,167.98,167.88,25.90352833]
[1641264267974,23.1357,167.98,167.88,25.40352833]
[1641264268573,23.1357,167.98,167.88,25.14352833]
[1641264268875,23.6357,167.98,167.88,25.14352833]
[1641264269072,32.4557,167.98,167.88,25.14352833]
[1641264269473,32.1957,167.98,167.88,25.14352833]
[1641264269676,31.6957,167.98,167.88,25.14352833]
[1641264270075,31.6957,167.98,167.88,25.40352833]
[1641264270281,31.6957,167.98,167.88,25.90352833]
[1641264270875,23.1357,167.98,167.88,25.90352833]
[1641264271075,2.39035429,167.99,167.88,25.90352833]
[1641264272676,3.63255429,167.99,167.88,25.90352833]
[1641264272878,24.7543,167.98,167.88,25.64352833]
[1641264274279,24.7543,167.98,167.88,25.90352833]
[1641264274479,3.63255429,167.99,167.88,25.90352833]
[1641264274679,2.39035429,167.99,167.88,25.90352833]
[1641264274879,24.8926,168.01,167.88,25.90352833]
[1641264275081,24.8926,168.01,167.88,34.46352833]
[1641264275280,24.8926,168.01,167.88,35.89022201]
[1641264275881,27.56188637,168.01,167.88,35.89022201]
[1641264276883,27.56188637,168.01,167.89,23.3176]
[1641264277187,27.56188637,168.01,167.89,23.5776]
[1641264277383,27.56188637,168.01,167.89,24.0776]
[1641264277584,27.56188637,168.01,167.89,32.6376]
[1641264279383,1.3373,168.03,167.89,32.6376]
[1641264279583,33.8178,168.04,167.89,32.6376]
[1641264279991,33.8178,168.04,167.9,1.42669368]
[1641264280183,33.8178,168.04,167.9,78.41339368]
[1641264280384,18.51513996,168.04,167.91,52.0]
[1641264280583,18.51513996,168.04,167.91,52.26]
[1641264280786,11.07668127,168.04,167.92,23.0133]
[1641264281084,11.07668127,168.04,167.92,23.7733]
[1641264281285,24.6591,168.05,167.93,31.66551964]
[1641264281487,24.6591,168.05,167.94,22.5667]
[1641264281887,10.66431582,168.06,167.94,23.3267]
[1641264282691,10.66431582,168.06,167.94,24.6665]
[1641264286298,10.66431582,168.06,167.95,8.56]
[1641264286497,10.66431582,168.06,167.95,8.82]
[1641264286698,10.66431582,168.06,167.95,9.32]
[1641264286897,10.66431582,168.06,167.95,10.74669368]
[1641264290122,10.66431582,168.06,167.95,9.32]
[1641264295329,10.66431582,168.06,167.96,10.59588069]
[1641264295530,10.66431582,168.06,167.97,8.56]
[1641264295731,10.66431582,168.06,167.97,9.98669368]
[1641264295930,5.34253216,168.06,167.98,1.42669368]
[1641264296134,5.34253216,168.06,168.0,31.59174164]
[1641264296334,5.34253216,168.06,168.01,8.56]
[1641264296533,5.34253216,168.06,168.01,10.24669368]
[1641264296733,5.34253216,168.06,168.02,1.42669368]
[1641264296934,5.34253216,168.06,168.02,10.48669368]
[1641264297137,5.34253216,168.06,168.02,10.74669368]
[1641264297633,5.34253216,168.06,168.03,1.42669368]
[1641264297834,5.34253216,168.06,168.04,31.28821366]
[1641264298035,5.34253216,168.06,168.04,31.54821366]
[1641264298235,5.34253216,168.06,168.04,32.04821366]
[1641264300539,5.34253216,168.06,168.04,31.28821366]
[1641264301337,5.34253216,168.06,168.0,23.3305]
[1641264301537,5.34253216,168.06,168.0,0.5]
[1641264302237,5.34253216,168.06,167.99,9.32]
[1641264302438,5.34253216,168.06,168.0,23.50863189]
[1641264302838,5.34253216,168.06,168.0,24.26863189]
[1641264304842,5.34253216,168.06,168.0,25.69532557]
[1641264305241,5.34253216,168.06,168.01,8.56]
[1641264305441,5.34253216,168.06,168.01,9.06]
[1641264305643,5.34253216,168.06,168.02,1.42669368]
[1641264305844,5.34253216,168.06,168.02,1.92669368]
[1641264306145,5.34253216,168.06,168.02,2.18669368]
[1641264307143,5.34253216,168.06,168.03,1.42669368]
[1641264307348,5.34253216,168.06,168.04,23.05305386]
[1641264307548,5.34253216,168.06,168.04,23.31305386]
[1641264307750,5.34253216,168.06,168.04,23.81305386]
[1641264314889,5.34253216,168.06,168.04,25.23974754]
[1641264319989,5.34253216,168.06,168.04,33.79974754]
[1641264320386,2.72976286,168.06,168.04,33.79974754]
[1641264327793,2.72976286,168.06,168.04,24.97974754]
[1641264327995,2.72976286,168.06,168.04,23.55305386]
[1641264328594,8.79411114,168.06,168.04,23.55305386]
[1641264329394,2.72976286,168.06,168.04,23.55305386]
[1641264329594,2.72976286,168.06,168.04,23.81305386]
[1641264340627,5.76196283,168.06,168.04,23.81305386]
[1641264340827,2.72976286,168.06,168.04,23.81305386]
[1641264341428,5.76191117,168.06,168.04,23.81305386]
[1641264341830,3.03219997,168.05,168.04,23.81305386]
[1641264342931,3.03219997,168.05,168.04,23.55305386]
[1641264343734,2.72976286,168.06,168.04,23.55305386]
[1641264344336,2.72976286,168.06,168.04,23.81305386]
[1641264348137,1.3334,168.11,168.06,2.72976286]
[1641264348336,24.9459,168.12,168.06,11.78976286]
[1641264348535,24.9459,168.12,168.06,12.04976286]
[1641264349137,1.3519,168.15,168.06,12.04976286]
[1641264349337,26.1472,168.15,168.06,12.04976286]
[1641264352447,26.1472,168.15,168.06,11.78976286]
[1641264354046,26.1472,168.15,168.06,12.04976286]
[1641264355049,26.1472,168.15,168.06,11.78976286]
[1641264355248,26.1472,168.15,168.06,11.28976286]
[1641264355447,26.6472,168.15,168.06,2.72976286]
[1641264355647,26.9072,168.15,168.06,2.72976286]
[1641264356347,26.9072,168.15,168.06,3.22976286]
[1641264356549,26.9072,168.15,168.06,3.48976286]
[1641264356949,26.6472,168.15,168.06,2.98976286]
[1641264357147,26.6472,168.15,168.06,3.48976286]
[1641264357552,26.1472,168.15,168.06,3.48976286]
[1641264359854,26.1472,168.15,168.06,4.91645654]
[1641264363259,26.1472,168.15,168.06,3.48976286]
[1641264363459,25.67232962,168.14,168.06,3.48976286]
[1641264363659,25.67232962,168.14,168.06,3.22976286]
[1641264363860,2.60773766,168.13,168.06,2.72976286]
[1641264364257,3.36773766,168.13,168.06,2.72976286]
[1641264365060,3.36773766,168.13,168.06,2.98976286]
[1641264365258,3.36773766,168.13,168.06,2.72976286]
[1641264366559,3.36773766,168.13,168.06,2.98976286]
[1641264368292,3.10773766,168.13,168.06,2.98976286]
[1641264377001,8.56,168.14,168.06,2.98976286]
[1641264377206,9.06,168.14,168.06,2.98976286]
[1641264378501,2.43676755,168.13,168.06,2.98976286]
[1641264379001,2.93676755,168.13,168.06,2.98976286]
[1641264381105,33.61826952,168.13,168.06,2.98976286]
[1641264383010,33.87826952,168.13,168.06,2.98976286]
[1641264383608,8.56,168.12,167.95,54.06829133]
[1641264383807,8.56,168.12,167.92,23.4427]
[1641264383808,33.91049368,168.12,167.92,23.4427]
[1641264384008,2.6497,168.11,167.92,23.4427]
[1641264384207,11.29417837,168.1,167.92,23.4427]
[1641264384407,58.75977837,168.1,167.92,23.4427]
[1641264384607,59.01977837,168.1,167.93,27.34478128]
[1641264384807,59.01977837,168.1,167.93,35.90478128]
[1641264385010,58.75977837,168.1,167.94,24.441]
[1641264385209,1.2681,168.09,167.95,1.3081]
[1641264385409,10.3281,168.09,167.95,1.8081]
[1641264385613,2.73710163,168.07,167.95,2.0681]
[1641264388216,23.3274,168.06,167.95,2.0681]
[1641264388815,24.639,168.06,167.95,2.0681]
[1641264391319,24.639,168.06,167.95,1.8081]
[1641264393044,24.639,168.06,167.95,2.0681]
[1641264394248,23.3274,168.06,167.95,2.0681]
[1641264394849,24.6418,168.06,167.95,2.0681]
[1641264396449,24.6418,168.06,167.95,10.6281]
[1641264396649,24.6418,168.06,167.96,24.5212]
[1641264396850,24.6418,168.06,167.97,27.75800058]
[1641264397051,24.6418,168.06,167.97,28.01800058]
[1641264397253,24.6418,168.06,167.97,28.51800058]
[1641264397652,24.6418,168.06,167.97,29.75820058]
[1641264398556,24.6418,168.06,167.97,29.49820058]
[1641264400454,24.6418,168.06,167.97,29.75820058]
[1641264401355,24.6418,168.06,167.97,29.49820058]
[1641264402459,24.6418,168.06,167.97,29.75820058]
[1641264408061,24.6418,168.06,167.97,29.49820058]
[1641264409962,24.6418,168.06,167.97,29.75820058]
[1641264410563,24.6418,168.06,167.97,28.51800058]
[1641264415974,25.1418,168.06,167.97,28.51800058]
[1641264416176,24.6418,168.06,167.97,28.51800058]
[1641264421706,23.1907,168.1,167.97,28.51800058]
[1641264421903,23.1907,168.1,167.98,32.0822]
[1641264421904,47.9613,168.1,167.98,32.0822]
[1641264422103,47.9613,168.1,167.98,32.3422]
[1641264422303,47.9613,168.1,167.98,39.8832]
[1641264422503,47.9613,168.1,167.99,1.3117]
[1641264423003,47.9613,168.1,167.99,2.0717]
[1641264425302,47.9613,168.1,167.99,0.5]
[1641264425503,48.7213,168.1,167.99,0.5]
[1641264425702,48.7213,168.1,167.98,0.5]
[1641264425903,8.56,168.09,167.97,28.25800058]
[1641264426202,26.88870837,168.08,167.97,28.25800058]
[1641264426402,27.38870837,168.08,167.97,28.25800058]
[1641264426602,1.2947,168.07,167.97,28.25800058]
[1641264427015,2.0547,168.07,167.97,28.51800058]
[1641264427314,1.7947,168.07,167.97,28.51800058]
[1641264429220,1.7947,168.07,167.97,0.5]
[1641264429422,2.0547,168.07,167.95,0.5]
[1641264429623,33.2272,168.06,167.93,0.5]
[1641264429817,2.25542573,168.05,167.91,1.7842]
[1641264430017,32.6149,168.04,167.91,1.2842]
[1641264430218,29.59699456,168.03,167.92,30.93121676]
[1641264430430,30.09699456,168.03,167.92,31.43121676]
[1641264430718,26.4651193,168.02,167.92,31.43121676]
[1641264430919,28.2684193,168.02,167.92,31.43121676]
[1641264431118,28.5284193,168.02,167.92,31.43121676]
[1641264431319,28.2684193,168.02,167.92,31.69121676]
[1641264432022,28.5284193,168.02,167.92,31.43121676]
[1641264433521,28.5284193,168.02,167.92,31.69121676]
[1641264434220,28.2684193,168.02,167.92,31.69121676]
[1641264434420,27.7684193,168.02,167.92,31.69121676]
[1641264434820,28.2684193,168.02,167.92,31.69121676]
[1641264435020,27.7684193,168.02,167.92,31.69121676]
[1641264435421,28.5284193,168.02,167.92,31.69121676]
[1641264435822,37.0884193,168.02,167.92,31.69121676]
[1641264436921,36.8284193,168.02,167.92,31.69121676]
[1641264437323,37.0884193,168.02,167.92,31.69121676]
[1641264437723,34.5525,168.02,167.92,31.69121676]
[1641264440231,34.0525,168.02,167.92,31.69121676]
[1641264440626,25.2325,168.02,167.93,8.56]
[1641264440826,8.56,168.08,167.93,9.06]
[1641264441027,1.3617,168.07,167.94,24.9437]
[1641264441230,1.3617,168.07,167.94,33.5037]
[1641264441426,1.3617,168.07,167.94,45.4335823]
[1641264441626,1.3617,168.07,167.95,1.2931]
[1641264441826,1.3617,168.07,167.96,8.56]
[1641264442027,1.3617,168.07,167.96,15.535]
[1641264442232,1.3617,168.07,167.96,16.035]
[1641264442828,1.3617,168.07,167.97,1.2879]
[1641264443029,1.3617,168.07,167.97,1.5479]
[1641264443230,2.34722909,168.09,167.97,2.0479]
[1641264443433,3.68822909,168.09,167.97,2.0479]
[1641264446062,3.94822909,168.09,167.97,2.0479]
[1641264446663,4.44822909,168.09,167.97,2.0479]
[1641264446962,4.44822909,168.09,167.97,1.7879]
[1641264447162,24.3327,168.08,167.97,1.7879]
[1641264447365,24.8327,168.08,167.97,1.7879]
[1641264447562,25.0927,168.08,167.97,1.7879]
[1641264448163,24.5927,168.08,167.97,1.7879]
[1641264448363,1.3684,168.07,167.97,2.0479]
[1641264448565,2.71149413,168.06,167.97,2.0479]
[1641264451270,1.3684,168.07,167.97,2.0479]
[1641264451469,23.1907,168.1,167.97,2.0479]
[1641264451668,23.1907,168.1,167.99,27.54509733]
[1641264451868,23.1907,168.1,167.99,34.44709733]
[1641264452068,23.1907,168.1,167.99,34.70709733]
[1641264452270,1.3488,168.11,167.99,34.70709733]
[1641264452471,4.05184669,168.11,168.0,24.4199]
[1641264452669,24.7302,168.14,168.0,24.4199]
[1641264452868,24.7302,168.14,168.01,1.3723]
[1641264453071,24.7302,168.14,168.01,1.6323]
[1641264453269,24.7302,168.14,168.01,2.1323]
[1641264453871,2.34767498,168.13,168.01,2.1323]
[1641264454074,2.34767498,168.13,168.01,79.228]
[1641264454472,2.34767498,168.13,168.01,78.728]
[1641264454874,2.84767498,168.13,168.01,78.728]
[1641264455273,1.2563,168.12,168.01,78.728]
[1641264455472,1.2563,168.12,168.01,87.288]
[1641264455876,1.2563,168.12,168.01,87.788]
[1641264456474,1.2563,168.12,168.01,79.228]
[1641264456676,1.2563,168.12,168.01,87.788]
[1641264459279,1.2563,168.12,168.01,79.228]
[1641264460380,1.2563,168.12,168.01,87.788]
[1641264460780,1.2563,168.12,168.01,79.228]
[1641264461181,25.4598,168.12,168.01,79.228]
[1641264462381,25.9598,168.12,168.01,79.228]
[1641264463280,25.4598,168.12,168.01,79.228]
[1641264464483,24.2035,168.12,168.01,84.381]
[1641264464684,31.7643,168.17,168.01,92.941]
[1641264464884,1.2762,168.16,168.02,24.7457]
[1641264465085,1.2762,168.16,168.02,25.0057]
[1641264465288,1.2762,168.16,168.03,8.56]
[1641264465491,3.77345228,168.16,168.04,24.2084]
[1641264465688,3.77345228,168.16,168.06,25.81817897]
[1641264465887,3.77345228,168.16,168.06,26.31817897]
[1641264466087,3.77345228,168.16,168.06,26.57817897]
[1641264469089,2.49725228,168.16,168.06,35.13817897]
[1641264470490,2.49725228,168.16,168.07,1.2413]
[1641264470888,2.49725228,168.16,168.07,2.0013]
[1641264474497,2.49725228,168.16,168.07,1.7413]
[1641264475297,2.49725228,168.16,168.07,1.2413]
[1641264475502,2.49725228,168.16,168.07,1.5013]
[1641264476702,2.49725228,168.16,168.07,2.0013]
[1641264482027,2.49725228,168.16,168.07,1.7413]
[1641264482234,8.56,168.15,168.07,0.5]
[1641264482428,8.56,168.15,168.06,26.31817897]
[1641264482628,9.32,168.15,168.06,25.81817897]
[1641264483030,10.5945,168.15,168.06,25.81817897]
[1641264483633,10.5945,168.15,168.06,26.07817897]
[1641264484230,10.5945,168.15,168.06,26.57817897]
[1641264484430,10.5945,168.15,168.06,26.07817897]
[1641264488333,34.3546,168.15,168.06,26.07817897]
[1641264489534,33.5946,168.15,168.06,26.07817897]
[1641264489938,33.5946,168.15,168.06,26.57817897]
[1641264490564,33.5946,168.15,168.06,26.07817897]
[1641264490740,33.5946,168.15,168.06,26.57817897]
[1641264495743,33.5946,168.15,168.06,26.07817897]
[1641264496043,33.8546,168.15,168.06,26.57817897]
[1641264497344,34.3546,168.15,168.06,26.57817897]
[1641264497744,34.3546,168.15,168.06,26.07817897]
[1641264497944,34.3546,168.15,168.06,26.57817897]
[1641264499853,34.0946,168.15,168.06,26.57817897]
[1641264501454,33.5946,168.15,168.06,26.57817897]
[1641264507777,34.0946,168.15,168.06,26.57817897]
[1641264507977,33.5946,168.15,168.06,26.57817897]
[1641264511484,34.0946,168.15,168.06,26.57817897]
[1641264513283,2.49725228,168.16,168.06,26.57817897]
[1641264513482,2.49725228,168.16,168.06,31.92117897]
[1641264513884,8.56,168.19,168.06,31.92117897]
[1641264514084,8.56,168.19,168.07,24.16]
[1641264514283,32.0926,168.22,168.07,24.16]
[1641264514485,1.2763,168.21,168.07,24.92]
[1641264515085,1.2763,168.21,168.08,8.56]
[1641264515285,23.5326,168.22,168.08,8.56]
[1641264515484,23.5326,168.22,168.08,9.32]
[1641264515684,23.5326,168.22,168.09,23.0618]
[1641264515886,23.5326,168.22,168.1,8.56]
[1641264516086,23.5326,168.22,168.11,26.0176]
[1641264516286,26.92780562,168.24,168.11,34.5776]
[1641264516489,26.92780562,168.24,168.11,35.3376]
[1641264518188,24.5497,168.23,168.11,35.3376]
[1641264520590,18.5497,168.23,168.11,35.3376]
[1641264521088,19.0497,168.23,168.11,35.3376]
[1641264521289,19.0497,168.23,168.11,26.5176]
[1641264521489,1.2398,168.22,168.11,26.5176]
[1641264521890,1.7398,168.22,168.11,26.5176]
[1641264522090,1.2398,168.22,168.11,26.5176]
[1641264522691,1.2398,168.22,168.11,35.0776]
[1641264522893,1.2398,168.22,168.11,35.3376]
[1641264526002,1.7398,168.22,168.11,35.3376]
[1641264526206,1.2398,168.22,168.11,35.3376]
[1641264526404,1.7398,168.22,168.11,35.3376]
[1641264526602,1.2398,168.22,168.11,35.3376]
[1641264526805,1.7398,168.22,168.11,35.3376]
[1641264527002,1.2398,168.22,168.11,35.3376]
[1641264528904,1.7398,168.22,168.11,35.3376]
[1641264529306,1.7398,168.22,168.11,35.0776]
[1641264530106,1.2398,168.22,168.11,35.0776]
[1641264530303,1.7398,168.22,168.11,35.0776]
[1641264530707,1.2398,168.22,168.11,35.3376]
[1641264532428,1.7398,168.22,168.11,35.3376]
[1641264533534,1.2398,168.22,168.11,35.3376]
[1641264535933,1.7398,168.22,168.11,35.3376]
[1641264536233,1.2398,168.22,168.11,35.3376]
[1641264537835,1.7398,168.22,168.11,35.3376]
[1641264547646,1.7398,168.22,168.11,26.7776]
[1641264549349,1.7398,168.22,168.11,26.5176]
[1641264551056,1.7398,168.22,168.11,26.7776]
[1641264551257,10.2998,168.22,168.11,1.8377]
[1641264551459,10.5598,168.22,168.08,74.3555]
[1641264551661,23.3446,168.21,168.08,0.5]
[1641264551859,32.4046,168.21,168.08,0.5]
[1641264552059,32.6646,168.21,168.08,0.5]
[1641264552260,32.6646,168.21,168.07,1.8286]
[1641264552462,1.2974,168.2,168.07,1.3286]
[1641264552661,1.2974,168.2,168.07,2.0886]
[1641264552863,2.0574,168.2,168.07,2.0886]
[1641264554864,2.0574,168.2,168.07,26.608]
[1641264555666,2.0574,168.2,168.07,1.5886]
[1641264555871,109.33250396,168.18,167.99,46.57311555]
[1641264556069,31.4152,168.17,167.98,3.09920148]
[1641264556268,2.6125,168.16,167.94,33.5782]
[1641264556470,8.56,168.15,167.94,33.5782]
[1641264556668,8.56,168.15,167.95,79.9489]
[1641264556969,23.83200472,168.14,167.96,30.34612809]
[1641264557169,8.56,168.13,167.97,23.4083]
[1641264557370,2.15150944,168.12,167.97,23.9083]
[1641264557576,8.56,168.11,167.97,25.2226]
[1641264558090,8.56,168.11,167.97,25.4826]
[1641264558493,8.56,168.11,167.97,34.0426]
[1641264559393,8.56,168.11,167.98,46.58665899]
[1641264559598,8.56,168.11,167.99,24.8529]
[1641264559995,8.56,168.11,167.99,25.6129]
[1641264565605,9.9131,168.16,168.0,8.56]
[1641264565803,9.9131,168.16,168.01,23.3362]
[1641264566004,9.9131,168.16,168.02,8.56]
[1641264566203,23.8688,168.15,168.03,22.9888]
[1641264566403,23.8688,168.15,168.03,23.4888]
[1641264566605,2.93173268,168.14,168.04,27.58319848]
[1641264567005,2.93173268,168.14,168.04,28.08319848]
[1641264567610,2.93173268,168.14,168.04,28.34319848]
[1641264569107,2.93173268,168.14,168.04,28.08319848]
[1641264569333,3.69173268,168.14,168.04,27.58319848]
[1641264570513,3.43173268,168.14,168.04,27.84319848]
[1641264570710,2.93173268,168.14,168.04,28.34319848]
[1641264571109,3.19173268,168.14,168.04,28.34319848]
[1641264571309,3.19173268,168.14,168.04,27.84319848]
[1641264571310,3.69173268,168.14,168.04,27.84319848]
[1641264572110,3.69173268,168.14,168.04,27.58319848]
[1641264572911,2.93173268,168.14,168.04,28.08319848]
[1641264573414,2.93173268,168.14,168.04,28.34319848]
[1641264574013,3.19173268,168.14,168.04,28.34319848]
[1641264574214,3.69173268,168.14,168.04,27.84319848]
[1641264575519,3.69173268,168.14,168.04,27.58319848]
[1641264576118,3.69173268,168.14,168.04,27.84319848]
[1641264577543,3.69173268,168.14,168.04,27.58319848]
[1641264578949,3.69173268,168.14,168.04,27.84319848]
[1641264579651,8.56,168.13,168.04,27.84319848]
[1641264579857,23.6037,168.12,168.04,27.84319848]
[1641264580054,32.4237,168.12,168.04,0.26]